Workbook

Sheet App.2-EE_Account 1576 (2013)
A1: Appendix 2-EE
A2: Account 1576 - Accounting Changes under CGAAP
A3: 2013 Changes in Accounting Policies under CGAAP
A5: Assumes the applicant made capitalization and depreciation expense accounting policy changes under CGAAP effective January 1, 2013
B9: 2011 Rebasing Year | C9: 2012 | D9: 2013 | E9: 2014 | F9: 2015 Rebasing Year | G9: 2016 | H9: 2017 | I9: 2018 | J9: 2019
A10: Reporting Basis | B10: CGAAP | C10: IRM | D10: IRM | E10: IRM | F10: CGAAP - ASPE | G10: IRM | H10: IRM | I10: IRM | J10: IRM
A11: Forecast vs. Actual Used in Rebasing Year | B11: Forecast | C11: Actual | D11: Actual | E11: Forecast | F11: Forecast
E12: $ | F12: $ | G12: $ | H12: $ | I12: $ | J12: $
A13: PP&E Values under former CGAAP
A14: Opening net PP&E - Note 1 | D14: 298866239 | E14: =+D17 -> 318306260.3
A15: Net Additions - Note 4 | D15: =D21+1789453.73 -> 30483745.73 | E15: =E21+1585573 -> 30297489
A16: Net Depreciation (amounts should be negative) - Note 4 | D16: =D22+1143080.39-173658.35-74899.44 -> -11043724.4 | E16: =E22+739671-173658 -> -11472593
A17: Closing net PP&E (1) | D17: =D14+D15+D16 -> 318306260.3 | E17: =E14+E15+E16 -> 337131156.3
A19: PP&E Values under revised CGAAP (Starts from 2013)
A20: Opening net PP&E - Note 1 | D20: 298866239 | E20: =+D23 -> 315622284
A21: Net Additions - Note 4 | D21: 28694292 | E21: 28711916
A22: Net Depreciation (amounts should be negative) - Note 4 | D22: -11938247 | E22: -12038606
A23: Closing net PP&E (2) | D23: =SUM(D20:D22) -> 315622284 | E23: =SUM(E20:E22) -> 332295594
A25: Difference in Closing net PP&E, former CGAAP vs. revised CGAAP | D25: =D17-D23 -> 2683976.33 | E25: =E17-E23 -> 4835562.33
A28: Effect on Deferral and Variance Account Rate Riders
A29: Closing balance in Account 1576 | F29: =IF(ISERROR(E25), 0, E25) -> 4835562.33 | H29: WACC | I29: 0.0721
A30: Return on Rate Base Associated with Account 1576 balance at WACC - Note 2 | F30: =E25*I29*I30 -> 1045932.132 | G30: # of years of rate rider disposition period | I30: 3
A31: Amount included in Deferral and Variance Account Rate Rider Calculation | F31: =F29+F30 -> 5881494.462
A33: Notes:
A34: 1 For an applicant that made the capitalization and depreciation expense accounting policy changes on January 1, 2013, the PP&E values as of January 1, 2013 under both former CGAAP and revised CGAAP should be the same.
A35: 2 Return on rate base associated with Account 1576 balance is calculated as:
A36: the variance account opening balance as of 2015 rebasing year x WACC X # of years of rate rider disposition period
A37: * Please note that the calculation should be adjusted once WACC is updated and finalized in the rate application.
A38: 3 Account 1576 is cleared by including the total balance in the deferral and variance account rate rider calculation.
A39: 4 Net additions are additions net of disposals; Net depreciation is additions to depreciation net of disposals.

Sheet App.2-FA Proposed REG Invest.
A1: Appendix 2-FA
A2: Renewable Generation Connection Investment Summary (over the rate setting period)
A4: Enter the details of the Renewable Generation Connection projects as described in Section 2.5.2.5 of the Filing Requirements.
A5: All costs entered on this page will be transferred to the appropriate cells in the appendices that follow.
A6: For Part A, Renewable Enabling Improvements (REI), these amounts will be transferred to Appendix 2 - FB
A7: For Part B, Expansions, these amounts will be transferred to Appendix 2 - FC
A9: If there are more than five projects proposed to be in-service in a certain year, please amend the tables below and ensure that the formulae for the Total Amounts in any given rate year are updated.
A10: Based on the current methodology and allocation, amounts allocated represent 6% for REI Connection Investments and 17% for Expansion Investments. (pg 15, EB-2009-0349)
A13: Part A
A14: REI Investments (Direct Benefit at 6%) | C14: 2015 | D14: 2016 | E14: 2017 | F14: 2018 | G14: 2019
A15: Project 1
A16: Name: OPA FIT/MicroFIT Program Management
A17: Capital Costs
A18: OM&A (Start-Up) | C18: 0 | D18: 0 | E18: 0 | F18: 0 | G18: 0
A19: OM&A (Ongoing) | C19: 117500 | D19: 122500 | E19: 110000 | F19: 110000 | G19: 110000
A21: Project 2
A22: Name: Maintenance of Connected REG Infrastructure
A23: Capital Costs | C23: 0 | D23: 0 | E23: 0 | F23: 0 | G23: 0
A24: OM&A (Start-Up) | C24: 0 | D24: 0 | E24: 0 | F24: 0 | G24: 0
A25: OM&A (Ongoing) | C25: 70000 | D25: 76000 | E25: 82000 | F25: 88000 | G25: 94000
A27: Project 3
A28: Name: Remote Monitoring and Control of REG
A29: Capital Costs | C29: 180000 | D29: 180000 | E29: 180000 | F29: 180000 | G29: 180000
A30: OM&A (Start-Up) | C30: =0.05*C29 -> 9000 | D30: =0.05*D29 -> 9000 | E30: 9000 | F30: 9000 | G30: 9000
A31: OM&A (Ongoing)
A33: Project 4
A34: Name: REI Connection Project
A35: Capital Costs | C35: 0 | D35: 0 | E35: 0 | F35: 0 | G35: 0
A36: OM&A (Start-Up) | C36: 0 | D36: 0 | E36: 0 | F36: 0 | G36: 0
A37: OM&A (Ongoing) | C37: 0 | D37: 0 | E37: 0 | F37: 0 | G37: 0
A39: Project 5
A40: Name: REI Connection Project
A41: Capital Costs | C41: 0 | D41: 0 | E41: 0 | F41: 0 | G41: 0
A42: OM&A (Start-Up) | C42: 0 | D42: 0 | E42: 0 | F42: 0 | G42: 0
A43: OM&A (Ongoing) | C43: 0 | D43: 0 | E43: 0 | F43: 0 | G43: 0
A45: Total Capital Costs | C45: =SUM(C41,C35,C29,C23,C17) -> 180000 | D45: =SUM(D41,D35,D29,D23,D17) -> 180000 | E45: 180000 | F45: 180000 | G45: 180000
A46: Total OM&A (Start-Up) | C46: =SUM(C42,C36,C30,C24,C18) -> 9000 | D46: 9000 | E46: 9000 | F46: 9000 | G46: 9000
A47: Total OM&A (Ongoing) | C47: =SUM(C43,C37,C31,C25,C19) -> 187500 | D47: 198500 | E47: 192000 | F47: 198000 | G47: 204000
A49: Appendix 2-FA
A50: Renewable Generation Connection Investment Summary (over the rate setting period)
A53: Part B
A54: Expansion Investments (Direct Benefit at 17%) | C54: 2015 | D54: 2016 | E54: 2017 | F54: 2018 | G54: 2019
A55: Project 1
A56: Name: Transformer Replacement
A57: Capital Costs | C57: 60000 | D57: 60000 | E57: 60000 | F57: 60000 | G57: 60000
A58: OM&A (Start-Up) | C58: =0.1*C57 -> 6000 | D58: =0.1*D57 -> 6000 | E58: 6000 | F58: 6000 | G58: 6000
A59: OM&A (Ongoing) | C59: 0 | D59: 0 | E59: 0 | F59: 0 | G59: 0
A61: Project 2
A62: Name: Rebuilding Existing Line
A63: Capital Costs | C63: 38000 | D63: 10000 | E63: 12000 | F63: 14000 | G63: 16000
A64: OM&A (Start-Up) | C64: =0.1*C63 -> 3800 | D64: =0.1*D63 -> 1000 | E64: 1200 | F64: 1400 | G64: 1600
A65: OM&A (Ongoing) | C65: 0 | D65: 0 | E65: 0 | F65: 0 | G65: 0
A67: Project 3
A68: Name: Expansion Connection Project
A69: Capital Costs | C69: 0 | D69: 0 | E69: 0 | F69: 0 | G69: 0
A70: OM&A (Start-Up) | C70: 0 | D70: 0 | E70: 0 | F70: 0 | G70: 0
A71: OM&A (Ongoing) | C71: 0 | D71: 0 | E71: 0 | F71: 0 | G71: 0
A73: Project 4
A74: Name: Expansion Connection Project
A75: Capital Costs | C75: 0 | D75: 0 | E75: 0 | F75: 0 | G75: 0
A76: OM&A (Start-Up) | C76: 0 | D76: 0 | E76: 0 | F76: 0 | G76: 0
A77: OM&A (Ongoing) | C77: 0 | D77: 0 | E77: 0 | F77: 0 | G77: 0
A79: Project 5
A80: Name: Expansion Connection Project
A81: Capital Costs | C81: 0 | D81: 0 | E81: 0 | F81: 0 | G81: 0
A82: OM&A (Start-Up) | C82: 0 | D82: 0 | E82: 0 | F82: 0 | G82: 0
A83: OM&A (Ongoing) | C83: 0 | D83: 0 | E83: 0 | F83: 0 | G83: 0
A85: Total Capital Costs | C85: =SUM(C81,C75,C69,C63,C57) -> 98000 | D85: =SUM(D81,D75,D69,D63,D57) -> 70000 | E85: 72000 | F85: 74000 | G85: 76000
A86: Total OM&A (Start-Up) | C86: =SUM(C82,C76,C70,C64,C58) -> 9800 | D86: 7000 | E86: 7200 | F86: 7400 | G86: 7600
A87: Total OM&A (Ongoing) | C87: =SUM(C83,C77,C71,C65,C59) -> 0 | D87: 0 | E87: 0 | F87: 0 | G87: 0

Sheet App.2-FB Calc of REG Improvemnt
A1: Appendix 2-FB
A2: Calculation of Renewable Generation Connection Direct Benefits/Provincial Amount: Renewable Enabling Improvement Investments
A4: This table will calculate the distributor/provincial shares of the investments entered in Part A of Appendix 2-FA.
A5: Enter values in green shaded cells: WCA percentage, debt percentages, interest rates, kWh, tax rates, amortization period, CCA Class and percentage.
A6: Rate Riders are not calculated for Test Year as these assets and costs are already in the distributor's rate base/revenue requirement.
D8: 2015Test Year | G8: 2016 | J8: 2017 | K8: 2016 | M8: 2018 | P8: 2019
E9: Direct Benefit | F9: Provincial | H9: Direct Benefit | I9: Provincial | K9: Direct Benefit | L9: Provincial | N9: Direct Benefit | O9: Provincial | Q9: Direct Benefit | R9: Provincial
D10: Total | E10: 0.06 | F10: 0.94 | G10: Total | H10: 0.06 | I10: 0.94 | J10: Total | K10: 0.06 | L10: 0.94 | M10: Total | N10: 0.06 | O10: 0.94 | P10: Total | Q10: 0.06 | R10: 0.94
A11: Net Fixed Assets (average) | D11: =D75 -> 87000 | E11: =D11*E10 -> 5220 | F11: =D11*F10 -> 81780 | G11: =E75 -> 255000 | H11: =G11*H10 -> 15300 | I11: =G11*I10 -> 239700 | J11: =F75 -> 411000 | K11: =J11*K10 -> 24660 | L11: =J11*L10 -> 386340 | M11: =G75 -> 555000 | N11: =M11*N10 -> 33300 | O11: =M11*O10 -> 521700 | P11: =H75 -> 687000 | Q11: =P11*Q10 -> 41220 | R11: =P11*R10 -> 645780
A12: Incremental OM&A (on-going, N/A for Provincial Recovery) | D12: ='App.2-FA Proposed REG Invest.'!C47 -> 187500 | E12: =D12 -> 187500 | G12: ='App.2-FA Proposed REG Invest.'!D47 -> 198500 | H12: =G12 -> 198500 | J12: ='App.2-FA Proposed REG Invest.'!E47 -> 192000 | K12: =J12 -> 192000 | M12: ='App.2-FA Proposed REG Invest.'!F47 -> 198000 | N12: =M12 -> 198000 | P12: ='App.2-FA Proposed REG Invest.'!G47 -> 204000 | Q12: =P12 -> 204000
A13: Incremental OM&A (start-up, applicable for Provincial Recovery) | D13: ='App.2-FA Proposed REG Invest.'!C46 -> 9000 | E13: =D13*E10 -> 540 | F13: =D13*F10 -> 8460 | G13: ='App.2-FA Proposed REG Invest.'!D46 -> 9000 | H13: =G13*H10 -> 540 | I13: =G13*I10 -> 8460 | J13: ='App.2-FA Proposed REG Invest.'!E46 -> 9000 | K13: =J13*K10 -> 540 | L13: =J13*L10 -> 8460 | M13: ='App.2-FA Proposed REG Invest.'!F46 -> 9000 | N13: =M13*N10 -> 540 | O13: =M13*O10 -> 8460 | P13: ='App.2-FA Proposed REG Invest.'!G46 -> 9000 | Q13: =P13*Q10 -> 540 | R13: =P13*R10 -> 8460
A14: WCA | B14: 0.13 | E14: =(E12+E13)*$B$14 -> 24445.2 | F14: =F13*$B$14 -> 1099.8 | H14: =(H12+H13)*$B$14 -> 25875.2 | I14: =I13*$B$14 -> 1099.8 | K14: =(K12+K13)*$B$14 -> 25030.2 | L14: =L13*$B$14 -> 1099.8 | N14: =(N12+N13)*$B$14 -> 25810.2 | O14: =O13*$B$14 -> 1099.8 | Q14: =(Q12+Q13)*$B$14 -> 26590.2 | R14: =R13*$B$14 -> 1099.8
A15: Rate Base | E15: =SUM(E11+E14) -> 29665.2 | F15: =SUM(F11+F14) -> 82879.8 | H15: =SUM(H11+H14) -> 41175.2 | I15: =SUM(I11+I14) -> 240799.8 | K15: =SUM(K11+K14) -> 49690.2 | L15: =SUM(L11+L14) -> 387439.8 | N15: =SUM(N11+N14) -> 59110.2 | O15: =SUM(O11+O14) -> 522799.8 | Q15: =SUM(Q11+Q14) -> 67810.2 | R15: =SUM(R11+R14) -> 646879.8
D16: =+D11/25/2 -> 1740
A18: Deemed ST Debt | B18: 0.04 | E18: =E15*$B$18 -> 1186.608 | F18: =F15*$B$18 -> 3315.192 | H18: =H15*$B$18 -> 1647.008 | I18: =I15*$B$18 -> 9631.992 | K18: =K15*$B$18 -> 1987.608 | L18: =L15*$B$18 -> 15497.592 | N18: =N15*$B$18 -> 2364.408 | O18: =O15*$B$18 -> 20911.992 | Q18: =Q15*$B$18 -> 2712.408 | R18: =R15*$B$18 -> 25875.192
A19: Deemed LT Debt | B19: 0.56 | E19: =E15*$B$19 -> 16612.512 | F19: =F15*$B$19 -> 46412.688 | H19: =H15*$B$19 -> 23058.112 | I19: =I15*$B$19 -> 134847.888 | K19: =K15*$B$19 -> 27826.512 | L19: =L15*$B$19 -> 216966.288 | N19: =N15*$B$19 -> 33101.712 | O19: =O15*$B$19 -> 292767.888 | Q19: =Q15*$B$19 -> 37973.712 | R19: =R15*$B$19 -> 362252.688
A20: Deemed Equity | B20: 0.4 | E20: =E15*$B$20 -> 11866.08 | F20: =F15*$B$20 -> 33151.92 | H20: =H15*$B$20 -> 16470.08 | I20: =I15*$B$20 -> 96319.92 | K20: =K15*$B$20 -> 19876.08 | L20: =L15*$B$20 -> 154975.92 | N20: =N15*$B$20 -> 23644.08 | O20: =O15*$B$20 -> 209119.92 | Q20: =Q15*$B$20 -> 27124.08 | R20: =R15*$B$20 -> 258751.92
A22: ST Interest | B22: 0.0216 | E22: =E18*$B22 -> 25.6307328 | F22: =F18*$B22 -> 71.6081472 | H22: =H18*$B22 -> 35.5753728 | I22: =I18*$B22 -> 208.0510272 | K22: =K18*$B22 -> 42.9323328 | L22: =L18*$B22 -> 334.7479872 | N22: =N18*$B22 -> 51.0712128 | O22: =O18*$B22 -> 451.6990272 | Q22: =Q18*$B22 -> 58.5880128 | R22: =R18*$B22 -> 558.9041472
A23: LT Interest | B23: 0.06072871046 | E23: =E19*$B23 -> 1008.856431 | F23: 2818.582691 | H23: =H19*$B23 -> 1400.289407 | I23: 8189.138347 | K23: =K19*$B23 -> 1689.86819 | L23: 13176.08288 | N23: =N19*$B23 -> 2010.224284 | O23: 17779.4163 | Q23: =Q19*$B23 -> 2306.094561 | R23: 21999.1386
A24: ROE | B24: 0.093 | E24: 1103.54544 | F24: 3083.12856 | H24: 1531.71744 | I24: 8957.75256 | K24: 1848.47544 | L24: 14412.76056 | N24: 2198.89944 | O24: 19448.15256 | Q24: 2522.53944 | R24: 24063.92856
A25: Cost of Capital Total | E25: =SUM(E22:E24) -> 2138.032604 | F25: =SUM(F22:F24) -> 5973.319399 | H25: =SUM(H22:H24) -> 2967.58222 | I25: =SUM(I22:I24) -> 17354.94193 | K25: =SUM(K22:K24) -> 3581.275963 | L25: =SUM(L22:L24) -> 27923.59143 | N25: =SUM(N22:N24) -> 4260.194937 | O25: =SUM(O22:O24) -> 37679.26789 | Q25: =SUM(Q22:Q24) -> 4887.222014 | R25: =SUM(R22:R24) -> 46621.97131
A27: OM&A | E27: =E12+E13 -> 188040 | F27: =F13 -> 8460 | H27: =H12+H13 -> 199040 | I27: =I13 -> 8460 | K27: =K12+K13 -> 192540 | L27: =L13 -> 8460 | N27: =N12+N13 -> 198540 | O27: =O13 -> 8460 | Q27: =Q12+Q13 -> 204540 | R27: =R13 -> 8460
A28: Amortization | D28: =D70 -> 6000 | E28: =D28*E$10 -> 360 | F28: =D28*F$10 -> 5640 | G28: =E69+E70 -> 18000 | H28: =G28*H$10 -> 1080 | I28: =G28*I$10 -> 16920 | J28: =F69+F70 -> 30000 | K28: =J28*K$10 -> 1800 | L28: =J28*L$10 -> 28200 | M28: =G69+G70 -> 42000 | N28: =M28*N$10 -> 2520 | O28: =M28*O$10 -> 39480 | P28: =H69+H70 -> 54000 | Q28: =P28*Q$10 -> 3240 | R28: =P28*R$10 -> 50760
A29: Grossed-up PILs | E29: =E55 -> 371.9177437 | F29: =F55 -> 704.9102971 | H29: =H55 -> 486.8347233 | I29: =I55 -> 2204.797318 | K29: =K55 -> 585.5060131 | L29: =L55 -> 3928.203293 | N29: =N55 -> 718.3254495 | O29: =O55 -> 5845.143497 | Q29: =Q55 -> 861.7373293 | R29: =R55 -> 7928.031983
A31: Revenue Requirement | E31: =SUM(E25:E29) -> 190909.9503 | F31: =SUM(F25:F29) -> 20778.2297 | H31: =SUM(H25:H29) -> 203574.4169 | I31: =SUM(I25:I29) -> 44939.73925 | K31: =SUM(K25:K29) -> 198506.782 | L31: =SUM(L25:L29) -> 68511.79472 | N31: =SUM(N25:N29) -> 206038.5204 | O31: =SUM(O25:O29) -> 91464.41139 | Q31: =SUM(Q25:Q29) -> 213528.9593 | R31: =SUM(R25:R29) -> 113770.0033
A34: Provincial Rate Protection | F34: =F31 -> 20778.2297 | I34: =I31 -> 44939.73925 | L34: =L31 -> 68511.79472 | O34: =O31 -> 91464.41139 | R34: =R31 -> 113770.0033
A36: Monthly Amount Paid by IESO | F36: =F34/12 -> 1731.519141 | I36: =I34/12 -> 3744.978271 | L36: =L34/12 -> 5709.316227 | O36: =O34/12 -> 7622.034282 | R36: =R34/12 -> 9480.833608
A38: Note 1: The difference between the actual costs of approved eligible investments and revenue received from the IESO should be recorded in a variance account. The Board regulatory accounting guidance regarding a variance account either in an individual proceeding or on a generic basis.
A39: Note 2: For the 2014 Test Year, Costs and Revenues of the Direct Benefit are to be included in the test year applicant Rate Base and Revenues.
A41: PILs Calculation
E42: 2015 | H42: 2016 | K42: 2017 | N42: 2018 | Q42: 2019
A43: Income Tax | E43: Direct Benefit | F43: Provincial | H43: Direct Benefit | I43: Provincial | K43: Direct Benefit | L43: Provincial | N43: Direct Benefit | O43: Provincial | Q43: Direct Benefit | R43: Provincial
M44: Total | P44: Total
A45: Net Income - ROE on Rate Base | E45: =E24 -> 1103.54544 | F45: =F24 -> 3083.12856 | H45: =H24 -> 1531.71744 | I45: =I24 -> 8957.75256 | K45: =K24 -> 1848.47544 | L45: =L24 -> 14412.76056 | N45: =N24 -> 2198.89944 | O45: =O24 -> 19448.15256 | Q45: =Q24 -> 2522.53944 | R45: =R24 -> 24063.92856
A46: Amortization (6% DB and 94% P) | E46: =E28 -> 360 | F46: =F28 -> 5640 | H46: =H28 -> 1080 | I46: =I28 -> 16920 | K46: =K28 -> 1800 | L46: =L28 -> 28200 | N46: =N28 -> 2520 | O46: =O28 -> 39480 | Q46: =Q28 -> 3240 | R46: =R28 -> 50760
A47: CCA (6% DB and 94% P) | E47: =-D87*E$10 -> -432 | F47: =-D87*F$10 -> -6768 | H47: =-E87*H$10 -> -1261.44 | I47: =-E87*I$10 -> -19762.56 | K47: =-F87*K$10 -> -2024.5248 | L47: =-F87*L$10 -> -31717.5552 | N47: =-G87*N$10 -> -2726.562816 | O47: =-G87*O$10 -> -42716.15078 | Q47: =-H87*Q$10 -> -3372.437791 | R47: =-H87*R$10 -> -52834.85872
A48: Taxable income | E48: =SUM(E45:E47) -> 1031.54544 | F48: =SUM(F45:F47) -> 1955.12856 | H48: =SUM(H45:H47) -> 1350.27744 | I48: =SUM(I45:I47) -> 6115.19256 | K48: =SUM(K45:K47) -> 1623.95064 | L48: =SUM(L45:L47) -> 10895.20536 | N48: =SUM(N45:N47) -> 1992.336624 | O48: =SUM(O45:O47) -> 16212.00178 | Q48: =SUM(Q45:Q47) -> 2390.101649 | R48: =SUM(R45:R47) -> 21989.06984
A50: Tax Rate (to be entered) | E50: 0.265 | F50: 0.265 | H50: 0.265 | I50: 0.265 | K50: 0.265 | L50: 0.265 | N50: 0.265 | O50: 0.265 | Q50: 0.265 | R50: 0.265
A52: Income Taxes Payable | E52: =E48*E50 -> 273.3595416 | F52: =F48*F50 -> 518.1090684 | H52: =H48*H50 -> 357.8235216 | I52: =I48*I50 -> 1620.526028 | K52: =K48*K50 -> 430.3469196 | L52: =L48*L50 -> 2887.22942 | N52: =N48*N50 -> 527.9692054 | O52: =O48*O50 -> 4296.180471 | Q52: =Q48*Q50 -> 633.3769371 | R52: =R48*R50 -> 5827.103507
A53: Gross Up
A54: Income Taxes Payable | E54: =E52/(1-E50) -> 371.9177437 | F54: =F52/(1-F50) -> 704.9102971 | H54: =H52/(1-H50) -> 486.8347233 | I54: =I52/(1-I50) -> 2204.797318 | K54: =K52/(1-K50) -> 585.5060131 | L54: =L52/(1-L50) -> 3928.203293 | N54: =N52/(1-N50) -> 718.3254495 | O54: =O52/(1-O50) -> 5845.143497 | Q54: =Q52/(1-Q50) -> 861.7373293 | R54: =R52/(1-R50) -> 7928.031983
A55: Grossed Up PILs | E55: =SUM(E54:E54) -> 371.9177437 | F55: =SUM(F54:F54) -> 704.9102971 | H55: =SUM(H54:H54) -> 486.8347233 | I55: =SUM(I54:I54) -> 2204.797318 | K55: =SUM(K54:K54) -> 585.5060131 | L55: =SUM(L54:L54) -> 3928.203293 | N55: =SUM(N54:N54) -> 718.3254495 | O55: =SUM(O54:O54) -> 5845.143497 | Q55: =SUM(Q54:Q54) -> 861.7373293 | R55: =SUM(R54:R54) -> 7928.031983
A58: Appendix 2-FB
A59: Calculation of Renewable Generation Connection Direct Benefits/Provincial Amount: Renewable Enabling Improvement Investments
D61: 2015 | E61: 2016 | F61: 2017 | G61: 2018 | H61: 2019
A62: Net Fixed Assets | D62: =(180000/25)/2 -> 3600
B63: Enter applicable amortization in years: | C63: 15
A64: Opening Gross Fixed Assets | E64: =D66 -> 180000 | F64: =E66 -> 360000 | G64: =F66 -> 540000 | H64: =G66 -> 720000
A65: Gross Capital Additions | D65: ='App.2-FA Proposed REG Invest.'!C45 -> 180000 | E65: ='App.2-FA Proposed REG Invest.'!D45 -> 180000 | F65: ='App.2-FA Proposed REG Invest.'!E45 -> 180000 | G65: ='App.2-FA Proposed REG Invest.'!F45 -> 180000 | H65: ='App.2-FA Proposed REG Invest.'!G45 -> 180000
A66: Closing Gross Fixed Assets | D66: =SUM(D64:D65) -> 180000 | E66: =SUM(E64:E65) -> 360000 | F66: 540000 | G66: 720000 | H66: 900000
A68: Opening Accumulated Amortization | E68: =D71 -> 6000 | F68: =E71 -> 24000 | G68: =F71 -> 54000 | H68: =G71 -> 96000
A69: Current Year Amortization (before additions) | E69: =IF(ISERROR(E64/$C$63), 0, E64/$C$63) -> 12000 | F69: =IF(ISERROR(F64/$C$63), 0, F64/$C$63) -> 24000 | G69: =IF(ISERROR(G64/$C$63), 0, G64/$C$63) -> 36000 | H69: =IF(ISERROR(H64/$C$63), 0, H64/$C$63) -> 48000
A70: Additions (half year) | D70: =D65/C63/2 -> 6000 | E70: =E65/C63/2 -> 6000 | F70: =F65/C63/2 -> 6000 | G70: =G65/C63/2 -> 6000 | H70: =H65/C63/2 -> 6000
A71: Closing Accumulated Amortization | D71: =SUM(D68+D70) -> 6000 | E71: =SUM(E68:E70) -> 24000 | F71: =SUM(F68:F70) -> 54000 | G71: =SUM(G68:G70) -> 96000 | H71: =SUM(H68:H70) -> 150000
A73: Opening Net Fixed Assets | D73: =D64-D68 -> 0 | E73: =D74 -> 174000 | F73: =E74 -> 336000 | G73: =F74 -> 486000 | H73: =G74 -> 624000
A74: Closing Net Fixed Assets | D74: =D66-D71 -> 174000 | E74: =E66-E71 -> 336000 | F74: =F66-F71 -> 486000 | G74: =G66-G71 -> 624000 | H74: =H66-H71 -> 750000
A75: Average Net Fixed Assets | D75: =SUM(D73:D74)/2 -> 87000 | E75: =SUM(E73:E74)/2 -> 255000 | F75: =SUM(F73:F74)/2 -> 411000 | G75: =SUM(G73:G74)/2 -> 555000 | H75: =SUM(H73:H74)/2 -> 687000
A77: UCC for PILs Calculation
D78: 2015 | E78: 2016 | F78: 2017 | G78: 2018 | H78: 2019
A80: Opening UCC | E80: =D88 -> 172800 | F80: =E88 -> 331776 | G80: =F88 -> 478033.92 | H80: =G88 -> 612591.2064
A81: Capital Additions (from Appendix 2-FA) | D81: =D65 -> 180000 | E81: =E65 -> 180000 | F81: =F65 -> 180000 | G81: 180000 | H81: 180000
A82: UCC Before Half Year Rule | D82: =SUM(D80:D81) -> 180000 | E82: =SUM(E80:E81) -> 352800 | F82: =SUM(F80:F81) -> 511776 | G82: =SUM(G80:G81) -> 658033.92 | H82: =SUM(H80:H81) -> 792591.2064
A83: Half Year Rule (1/2 Additions - Disposals) | D83: =D81/2 -> 90000 | E83: =E81/2 -> 90000 | F83: =F81/2 -> 90000 | G83: =G81/2 -> 90000 | H83: =H81/2 -> 90000
A84: Reduced UCC | D84: =D82-D83 -> 90000 | E84: =E82-E83 -> 262800 | F84: =F82-F83 -> 421776 | G84: =G82-G83 -> 568033.92 | H84: =H82-H83 -> 702591.2064
A85: CCA Rate Class (to be entered) | C85: 47 | D85: =C85 -> 47 | E85: =C85 -> 47 | F85: =C85 -> 47 | G85: =C85 -> 47 | H85: =C85 -> 47
A86: CCA Rate (to be entered) | C86: 0.08 | D86: =C86 -> 0.08 | E86: =C86 -> 0.08 | F86: =C86 -> 0.08 | G86: =C86 -> 0.08 | H86: =C86 -> 0.08
A87: CCA | D87: =D84*D86 -> 7200 | E87: =E84*E86 -> 21024 | F87: 33742.08 | G87: 45442.7136 | H87: =H84*H86 -> 56207.29651
A88: Closing UCC | D88: =D82-D87 -> 172800 | E88: =E82-E87 -> 331776 | F88: =F82-F87 -> 478033.92 | G88: =G82-G87 -> 612591.2064 | H88: =H82-H87 -> 736383.9099

Sheet App.2-FC Calc of REG Expansion
A1: Appendix 2-FC
A2: Calculation of Renewable Generation Connection Direct Benefits/Provincial Amount: Renewable Expansion Investments
A4: This table will calculate the distributor/provincial shares of the investments entered in Part B of Appendix 2-FA.
A5: Enter values in green shaded cells: WCA percentage, debt percentages, interest rates, kWh, tax rates, amortization period, CCA Class and percentage.
A6: Rate Riders are not calculated for Test Year as these assets and costs are already in the distributors rate base.
D9: 2015 Test Year | G9: 2016 | J9: 2017 | K9: 2016 | M9: 2018 | P9: 2019
E10: Direct Benefit | F10: Provincial | H10: Direct Benefit | I10: Provincial | K10: Direct Benefit | L10: Provincial | N10: Direct Benefit | O10: Provincial | Q10: Direct Benefit | R10: Provincial
D11: Total | E11: 0.17 | F11: 0.83 | G11: Total | H11: 0.17 | I11: 0.83 | J11: Total | K11: 0.17 | L11: 0.83 | M11: Total | N11: 0.17 | O11: 0.83 | P11: Total | Q11: 0.17 | R11: 0.83
A12: Net Fixed Assets (average) | D12: =D73 -> 48416.66667 | E12: =D12*E11 -> 8230.833333 | F12: =D12*F11 -> 40185.83333 | G12: =E73 -> 130250 | H12: =G12*H11 -> 22142.5 | I12: =G12*I11 -> 108107.5 | J12: =F73 -> 197238.0952 | K12: =J12*K11 -> 33530.47619 | L12: =J12*L11 -> 163707.619 | M12: =G73 -> 264511.9048 | N12: =M12*N11 -> 44967.02381 | O12: =M12*O11 -> 219544.881 | P12: =H73 -> 332023.8095 | Q12: =P12*Q11 -> 56444.04762 | R12: =P12*R11 -> 275579.7619
A13: Incremental OM&A (on-going, N/A for Provincial Recovery) | D13: ='App.2-FA Proposed REG Invest.'!C87 -> 0 | E13: =D13 -> 0 | G13: ='App.2-FA Proposed REG Invest.'!D87 -> 0 | H13: =G13 -> 0 | J13: ='App.2-FA Proposed REG Invest.'!E87 -> 0 | K13: =J13 -> 0 | M13: ='App.2-FA Proposed REG Invest.'!F87 -> 0 | N13: =M13 -> 0 | P13: ='App.2-FA Proposed REG Invest.'!G87 -> 0 | Q13: =P13 -> 0
A14: Incremental OM&A (start-up, applicable for Provincial Recovery) | D14: ='App.2-FA Proposed REG Invest.'!C86 -> 9800 | E14: =D14*E11 -> 1666 | F14: =D14*F11 -> 8134 | G14: ='App.2-FA Proposed REG Invest.'!D86 -> 7000 | H14: =G14*H11 -> 1190 | I14: =G14*I11 -> 5810 | J14: ='App.2-FA Proposed REG Invest.'!E86 -> 7200 | K14: =J14*K11 -> 1224 | L14: =J14*L11 -> 5976 | M14: ='App.2-FA Proposed REG Invest.'!F86 -> 7400 | N14: =M14*N11 -> 1258 | O14: =M14*O11 -> 6142 | P14: ='App.2-FA Proposed REG Invest.'!G86 -> 7600 | Q14: =P14*Q11 -> 1292 | R14: =P14*R11 -> 6308
A15: WCA | B15: 0.13 | E15: =(E13+E14)*$B$15 -> 216.58 | F15: =F14*$B$15 -> 1057.42 | H15: =(H13+H14)*$B$15 -> 154.7 | I15: =I14*$B$15 -> 755.3 | K15: =(K13+K14)*$B$15 -> 159.12 | L15: =L14*$B$15 -> 776.88 | N15: =(N13+N14)*$B$15 -> 163.54 | O15: =O14*$B$15 -> 798.46 | Q15: =(Q13+Q14)*$B$15 -> 167.96 | R15: =R14*$B$15 -> 820.04
A16: Rate Base | E16: =SUM(E12+E15) -> 8447.413333 | F16: =SUM(F12+F15) -> 41243.25333 | H16: =SUM(H12+H15) -> 22297.2 | I16: =SUM(I12+I15) -> 108862.8 | K16: =SUM(K12+K15) -> 33689.59619 | L16: =SUM(L12+L15) -> 164484.499 | N16: =SUM(N12+N15) -> 45130.56381 | O16: =SUM(O12+O15) -> 220343.341 | Q16: =SUM(Q12+Q15) -> 56612.00762 | R16: =SUM(R12+R15) -> 276399.8019
A19: Deemed ST Debt | B19: 0.04 | E19: =E16*$B$19 -> 337.8965333 | F19: =F16*$B$19 -> 1649.730133 | H19: =H16*$B$19 -> 891.888 | I19: =I16*$B$19 -> 4354.512 | K19: =K16*$B$19 -> 1347.583848 | L19: =L16*$B$19 -> 6579.379962 | N19: =N16*$B$19 -> 1805.222552 | O19: =O16*$B$19 -> 8813.733638 | Q19: =Q16*$B$19 -> 2264.480305 | R19: =R16*$B$19 -> 11055.99208
A20: Deemed LT Debt | B20: 0.56 | E20: =E16*$B$20 -> 4730.551467 | F20: =F16*$B$20 -> 23096.22187 | H20: =H16*$B$20 -> 12486.432 | I20: =I16*$B$20 -> 60963.168 | K20: =K16*$B$20 -> 18866.17387 | L20: =L16*$B$20 -> 92111.31947 | N20: =N16*$B$20 -> 25273.11573 | O20: =O16*$B$20 -> 123392.2709 | Q20: =Q16*$B$20 -> 31702.72427 | R20: =R16*$B$20 -> 154783.8891
A21: Deemed Equity | B21: 0.4 | E21: =E16*$B$21 -> 3378.965333 | F21: =F16*$B$21 -> 16497.30133 | H21: =H16*$B$21 -> 8918.88 | I21: =I16*$B$21 -> 43545.12 | K21: =K16*$B$21 -> 13475.83848 | L21: =L16*$B$21 -> 65793.79962 | N21: =N16*$B$21 -> 18052.22552 | O21: =O16*$B$21 -> 88137.33638 | Q21: =Q16*$B$21 -> 22644.80305 | R21: =R16*$B$21 -> 110559.9208
A23: ST Interest | B23: 0.0216 | E23: =E19*$B$23 -> 7.29856512 | F23: =F19*$B$23 -> 35.63417088 | H23: =H19*$B$23 -> 19.2647808 | I23: =I19*$B$23 -> 94.0574592 | K23: =K19*$B$23 -> 29.10781111 | L23: =L19*$B$23 -> 142.1146072 | N23: =N19*$B$23 -> 38.99280713 | O23: =O19*$B$23 -> 190.3766466 | Q23: =Q19*$B$23 -> 48.91277458 | R23: =R19*$B$23 -> 238.8094288
A24: LT Interest | B24: 0.06072871046 | E24: =E20*$B$24 -> 287.2802903 | F24: =F20*$B$24 -> 1402.603771 | H24: =H20*$B$24 -> 758.2849136 | I24: =I20*$B$24 -> 3702.214578 | K24: =K20*$B$24 -> 1145.71841 | L24: =L20*$B$24 -> 5593.80165 | N24: =N20*$B$24 -> 1534.803728 | O24: =O20*$B$24 -> 7493.453495 | Q24: =Q20*$B$24 -> 1925.265563 | R24: =R20*$B$24 -> 9399.825983
A25: ROE | B25: 0.093 | E25: =E21*$B$25 -> 314.243776 | F25: =F21*$B$25 -> 1534.249024 | H25: =H21*$B$25 -> 829.45584 | I25: =I21*$B$25 -> 4049.69616 | K25: =K21*$B$25 -> 1253.252978 | L25: =L21*$B$25 -> 6118.823365 | N25: =N21*$B$25 -> 1678.856974 | O25: =O21*$B$25 -> 8196.772283 | Q25: =Q21*$B$25 -> 2105.966683 | R25: =R21*$B$25 -> 10282.07263
A26: Cost of Capital Total | E26: =SUM(E23:E25) -> 608.8226315 | F26: =SUM(F23:F25) -> 2972.486965 | H26: =SUM(H23:H25) -> 1607.005534 | I26: =SUM(I23:I25) -> 7845.968198 | K26: =SUM(K23:K25) -> 2428.0792 | L26: =SUM(L23:L25) -> 11854.73962 | N26: =SUM(N23:N25) -> 3252.653509 | O26: =SUM(O23:O25) -> 15880.60242 | Q26: =SUM(Q23:Q25) -> 4080.145021 | R26: =SUM(R23:R25) -> 19920.70804
A28: OM&A | E28: =E13+E14 -> 1666 | F28: =F14 -> 8134 | H28: =H13+H14 -> 1190 | I28: =I14 -> 5810 | K28: =K13+K14 -> 1224 | L28: =L14 -> 5976 | N28: =N13+N14 -> 1258 | O28: =O14 -> 6142 | Q28: =Q13+Q14 -> 1292 | R28: =R14 -> 6308
A29: Amortization | D29: =D69 -> 1166.666667 | E29: =D29*E$11 -> 198.3333333 | F29: =D29*F$11 -> 968.3333333 | G29: =E67+E68 -> 3166.666667 | H29: =G29*H$11 -> 538.3333333 | I29: =G29*I$11 -> 2628.333333 | J29: =F67+F68 -> 4857.142857 | K29: =J29*K$11 -> 825.7142857 | L29: =J29*L$11 -> 4031.428571 | M29: =G67+G68 -> 6595.238095 | N29: =M29*N$11 -> 1121.190476 | O29: =M29*O$11 -> 5474.047619 | P29: =H67+H68 -> 8380.952381 | Q29: =P29*Q$11 -> 1424.761905 | R29: =P29*R$11 -> 6956.190476
A30: Grossed-up PILs | E30: =E55 -> -55.45995378 | F30: =F55 -> -270.7750684 | H30: =H55 -> -139.7825702 | I30: =I55 -> -682.4678425 | K30: =K55 -> -180.8784346 | L30: =L55 -> -883.1123572 | N30: =N55 -> -204.4103976 | O30: =O55 -> -998.0037058 | Q30: =Q55 -> -211.606535 | R30: =R55 -> -1033.137789
A32: Revenue Requirement | E32: =SUM(E26:E30) -> 2417.696011 | F32: =SUM(F26:F30) -> 11804.04523 | H32: =SUM(H26:H30) -> 3195.556298 | I32: =SUM(I26:I30) -> 15601.83369 | K32: =SUM(K26:K30) -> 4296.915051 | L32: =SUM(L26:L30) -> 20979.05584 | N32: =SUM(N26:N30) -> 5427.433587 | O32: =SUM(O26:O30) -> 26498.64634 | Q32: =SUM(Q26:Q30) -> 6585.300391 | R32: =SUM(R26:R30) -> 32151.76073
A35: Provincial Rate Protection | F35: =F32 -> 11804.04523 | I35: =I32 -> 15601.83369 | L35: =L32 -> 20979.05584 | O35: =O32 -> 26498.64634 | R35: =R32 -> 32151.76073
A37: Monthly Amount Paid by IESO | F37: =F35/12 -> 983.6704359 | I37: =I35/12 -> 1300.152807 | L37: =L35/12 -> 1748.254653 | O37: =O35/12 -> 2208.220528 | R37: =R35/12 -> 2679.313394
A39: Note 1: The difference between the actual costs of approved eligible investments and revenue received from the IESO should be recorded in a variance account. The Board may provide regulatory accounting guidance regarding a variance account either in an individual proceeding or on a generic basis.
A40: Note 2: For the 2014 Test Year, Costs and Revenues of the Direct Benefit are to be included in the test year applicant Rate Base and Revenues.
A42: PILs Calculation
E43: 2015 | H43: 2016 | K43: 2017 | N43: 2018 | Q43: 2019
A44: Income Tax | E44: Direct Benefit | F44: Provincial | H44: Direct Benefit | I44: Provincial | K44: Direct Benefit | L44: Provincial | N44: Direct Benefit | O44: Provincial | Q44: Direct Benefit | R44: Provincial
M45: Total | P45: Total
A46: Net Income - ROE on Rate Base | E46: =E25 -> 314.243776 | F46: =F25 -> 1534.249024 | H46: =H25 -> 829.45584 | I46: =I25 -> 4049.69616 | K46: =K25 -> 1253.252978 | L46: =L25 -> 6118.823365 | N46: =N25 -> 1678.856974 | O46: =O25 -> 8196.772283 | Q46: =Q25 -> 2105.966683 | R46: =R25 -> 10282.07263
A47: Amortization (17% DB and 83% P) | E47: =E29 -> 198.3333333 | F47: =F29 -> 968.3333333 | H47: =H29 -> 538.3333333 | I47: =I29 -> 2628.333333 | K47: =K29 -> 825.7142857 | L47: =L29 -> 4031.428571 | N47: =N29 -> 1121.190476 | O47: =O29 -> 5474.047619 | Q47: =Q29 -> 1424.761905 | R47: =R29 -> 6956.190476
A48: CCA (17% DB and 83% P) | E48: =-D85*E$11 -> -666.4 | F48: =-D85*F$11 -> -3253.6 | H48: =-E85*H$11 -> -1755.488 | I48: =-E85*I$11 -> -8570.912 | K48: =-F85*K$11 -> -2580.64896 | L48: =-F85*L$11 -> -12599.63904 | N48: =-G85*N$11 -> -3366.997043 | O48: =-G85*O$11 -> -16438.86792 | Q48: =-H85*Q$11 -> -4117.63728 | R48: =-H85*R$11 -> -20103.75848
A49: Taxable income | E49: =SUM(E46:E48) -> -153.8228907 | F49: =SUM(F46:F48) -> -751.0176427 | H49: =SUM(H46:H48) -> -387.6988267 | I49: =SUM(I46:I48) -> -1892.882507 | K49: =SUM(K46:K48) -> -501.681696 | L49: =SUM(L46:L48) -> -2449.387104 | N49: =SUM(N46:N48) -> -566.9495933 | O49: =SUM(O46:O48) -> -2768.048014 | Q49: =SUM(Q46:Q48) -> -586.9086916 | R49: =SUM(R46:R48) -> -2865.495376
A51: Tax Rate (to be entered) | E51: 0.265 | F51: 0.265 | H51: 0.265 | I51: 0.265 | K51: 0.265 | L51: 0.265 | N51: 0.265 | O51: 0.265 | Q51: 0.265 | R51: 0.265
A52: Income Taxes Payable | E52: =E49*E51 -> -40.76306603 | F52: =F49*F51 -> -199.0196753 | H52: =H49*H51 -> -102.7401891 | I52: =I49*I51 -> -501.6138643 | K52: =K49*K51 -> -132.9456494 | L52: =L49*L51 -> -649.0875826 | N52: =N49*N51 -> -150.2416422 | O52: =O49*O51 -> -733.5327238 | Q52: =Q49*Q51 -> -155.5308033 | R52: =R49*R51 -> -759.3562747
A53: Gross Up
A54: Income Taxes Payable | E54: =E52/(1-E51) -> -55.45995378 | F54: =F52/(1-F51) -> -270.7750684 | H54: =H52/(1-H51) -> -139.7825702 | I54: =I52/(1-I51) -> -682.4678425 | K54: =K52/(1-K51) -> -180.8784346 | L54: =L52/(1-L51) -> -883.1123572 | N54: =N52/(1-N51) -> -204.4103976 | O54: =O52/(1-O51) -> -998.0037058 | Q54: =Q52/(1-Q51) -> -211.606535 | R54: =R52/(1-R51) -> -1033.137789
A55: Grossed Up PILs | E55: =SUM(E54:E54) -> -55.45995378 | F55: =SUM(F54:F54) -> -270.7750684 | H55: =SUM(H54:H54) -> -139.7825702 | I55: =SUM(I54:I54) -> -682.4678425 | K55: =SUM(K54:K54) -> -180.8784346 | L55: =SUM(L54:L54) -> -883.1123572 | N55: =SUM(N54:N54) -> -204.4103976 | O55: =SUM(O54:O54) -> -998.0037058 | Q55: =SUM(Q54:Q54) -> -211.606535 | R55: =SUM(R54:R54) -> -1033.137789
A58: Appendix 2-FC
A59: Calculation of Renewable Generation Connection Direct Benefits/Provincial Amount: Renewable Expansion Investments
A60: Net Fixed Assets | D60: 2015 | E60: 2016 | F60: 2017 | G60: 2018 | H60: 2019
B61: Enter applicable amortization in years: | C61: 42
A62: Opening Gross Fixed Assets | E62: =D64 -> 98000 | F62: =E64 -> 168000 | G62: =F64 -> 240000 | H62: =G64 -> 314000
A63: Gross Capital Additions | D63: ='App.2-FA Proposed REG Invest.'!C85 -> 98000 | E63: ='App.2-FA Proposed REG Invest.'!D85 -> 70000 | F63: ='App.2-FA Proposed REG Invest.'!E85 -> 72000 | G63: ='App.2-FA Proposed REG Invest.'!F85 -> 74000 | H63: ='App.2-FA Proposed REG Invest.'!G85 -> 76000
A64: Closing Gross Fixed Assets | D64: =SUM(D62:D63) -> 98000 | E64: =SUM(E62:E63) -> 168000 | F64: =SUM(F62:F63) -> 240000 | G64: =SUM(G62:G63) -> 314000 | H64: =SUM(H62:H63) -> 390000
A66: Opening Accumulated Amortization | E66: =D69 -> 1166.666667 | F66: =E69 -> 4333.333333 | G66: =F69 -> 9190.47619 | H66: =G69 -> 15785.71429
A67: Current Year Amortization (before additions) | E67: =E62/$C$61 -> 2333.333333 | F67: =F62/$C$61 -> 4000 | G67: =G62/$C$61 -> 5714.285714 | H67: =H62/$C$61 -> 7476.190476
A68: Additions (half year) | D68: =D63/C61/2 -> 1166.666667 | E68: =E63/C61/2 -> 833.3333333 | F68: =F63/C61/2 -> 857.1428571 | G68: =G63/C61/2 -> 880.952381 | H68: =H63/C61/2 -> 904.7619048
A69: Closing Accumulated Amortization | D69: =SUM(D66+D68) -> 1166.666667 | E69: =SUM(E66:E68) -> 4333.333333 | F69: =SUM(F66:F68) -> 9190.47619 | G69: =SUM(G66:G68) -> 15785.71429 | H69: =SUM(H66:H68) -> 24166.66667
A71: Opening Net Fixed Assets | D71: =D62-D66 -> 0 | E71: =D72 -> 96833.33333 | F71: =E72 -> 163666.6667 | G71: =F72 -> 230809.5238 | H71: =G72 -> 298214.2857
A72: Closing Net Fixed Assets | D72: =D64-D69 -> 96833.33333 | E72: =E64-E69 -> 163666.6667 | F72: =F64-F69 -> 230809.5238 | G72: =G64-G69 -> 298214.2857 | H72: =H64-H69 -> 365833.3333
A73: Average Net Fixed Assets | D73: =SUM(D71:D72)/2 -> 48416.66667 | E73: =SUM(E71:E72)/2 -> 130250 | F73: =SUM(F71:F72)/2 -> 197238.0952 | G73: =SUM(G71:G72)/2 -> 264511.9048 | H73: =SUM(H71:H72)/2 -> 332023.8095
A75: UCC for PILs Calculation
D76: 2015 | E76: 2016 | F76: 2017 | G76: 2018 | H76: 2019
A78: Opening UCC | E78: =D86 -> 94080 | F78: =E86 -> 153753.6 | G78: =F86 -> 210573.312 | H78: =G86 -> 264767.447
A79: Capital Additions (from Appendix 2-FA) | D79: =D63 -> 98000 | E79: =E63 -> 70000 | F79: =F63 -> 72000 | G79: =G63 -> 74000 | H79: =H63 -> 76000
A80: UCC Before Half Year Rule | D80: =SUM(D78:D79) -> 98000 | E80: =SUM(E78:E79) -> 164080 | F80: =SUM(F78:F79) -> 225753.6 | G80: =SUM(G78:G79) -> 284573.312 | H80: =SUM(H78:H79) -> 340767.447
A81: Half Year Rule (1/2 Additions - Disposals) | D81: =D79/2 -> 49000 | E81: =E79/2 -> 35000 | F81: =F79/2 -> 36000 | G81: =G79/2 -> 37000 | H81: =H79/2 -> 38000
A82: Reduced UCC | D82: =D80-D81 -> 49000 | E82: =E80-E81 -> 129080 | F82: =F80-F81 -> 189753.6 | G82: =G80-G81 -> 247573.312 | H82: =H80-H81 -> 302767.447
A83: CCA Rate Class (to be entered) | C83: 47 | D83: =C83 -> 47 | E83: =C83 -> 47 | F83: =C83 -> 47 | G83: =C83 -> 47 | H83: =C83 -> 47
A84: CCA Rate (to be entered) | C84: 0.08 | D84: =C84 -> 0.08 | E84: =C84 -> 0.08 | F84: =C84 -> 0.08 | G84: =C84 -> 0.08 | H84: =C84 -> 0.08
A85: CCA | D85: =D82*D$84 -> 3920 | E85: =E82*E$84 -> 10326.4 | F85: 15180.288 | G85: 19805.86496 | H85: 24221.39576
A86: Closing UCC | D86: =D80-D85 -> 94080 | E86: =E80-E85 -> 153753.6 | F86: =F80-F85 -> 210573.312 | G86: =G80-G85 -> 264767.447 | H86: =H80-H85 -> 316546.0513

Sheet App.2-OA Capital Structure
C1: Appendix 2-OA
C2: Capital Structure and Cost of Capital
A4: This table must be completed for the last Board approved year and the test year.
G6: Year: | H6: 2015 - Test Year
A8: Line No.
C9: Particulars | E9: Capitalization Ratio | K9: Cost Rate | O9: Return
E11: (%) | I11: ($) | K11: (%) | O11: ($)
C12: Debt
A13: 1 | C13: Long-term Debt | E13: 0.56 | I13: =$I$22*E13 -> 226586372.2 | K13: 0.06072871046 | O13: =K13*I13 -> 13760298.19
A14: 2 | C14: Short-term Debt | E14: 0.04 | G14: (1) | I14: =$I$22*E14 -> 16184740.87 | K14: 0.0216 | O14: =K14*I14 -> 349590.4029
A15: 3 | C15: Total Debt | E15: =SUM(E13:E14) -> 0.6 | I15: =SUM(I13:I14) -> 242771113.1 | K15: =IF(E15=0,0,SUMPRODUCT(E13:E14,K13:K14)/E15) -> 0.05812012976 | O15: =SUM(O13:O14) -> 14109888.6
C17: Equity
A18: 4 | C18: Common Equity | E18: 0.4 | I18: =$I$22*E18 -> 161847408.7 | K18: 0.093 | O18: =K18*I18 -> 15051809.01
A19: 5 | C19: Preferred Shares | I19: =$I$22*E19 -> 0 | K19: 0 | O19: =K19*I19 -> 0
A20: 6 | C20: Total Equity | E20: =SUM(E18:E19) -> 0.4 | I20: =SUM(I18:I19) -> 161847408.7 | K20: =IF(E20=0,0,SUMPRODUCT(E18:E19,K18:K19)/E20) -> 0.093 | O20: =SUM(O18:O19) -> 15051809.01
A22: 7 | C22: Total | E22: 1 | I22: 404618521.9 | K22: =(K15*E15)+(K20*E20) -> 0.07207207786 | O22: =O15+O20 -> 29161697.61
A25: Notes
A26: (1) | C26: 4.0% unless an applicant has proposed or been approved for a different amount.
G34: Year: | H34: 2011- Board Approved
A36: Line No.
C37: Particulars | E37: Capitalization Ratio | K37: Cost Rate | O37: Return
E39: (%) | I39: ($) | K39: (%) | O39: ($)
C40: Debt
A41: 1 | C41: Long-term Debt | E41: 0.56 | I41: =$I$50*E41 -> 183231135.9 | K41: 0.0661627 | O41: =K41*I41 -> 12123066.68
A42: 2 | C42: Short-term Debt | E42: 0.04 | G42: (1) | I42: =$I$50*E42 -> 13087938.28 | K42: 0.0243 | O42: =K42*I42 -> 318036.9002
A43: 3 | C43: Total Debt | E43: =SUM(E41:E42) -> 0.6 | I43: =SUM(I41:I42) -> 196319074.2 | K43: =IF(E43=0,0,SUMPRODUCT(E41:E42,K41:K42)/E43) -> 0.06337185333 | O43: =SUM(O41:O42) -> 12441103.58
C45: Equity
A46: 4 | C46: Common Equity | E46: 0.4 | I46: =$I$50*E46 -> 130879382.8 | K46: 0.0966 | O46: =K46*I46 -> 12642948.38
A47: 5 | C47: Preferred Shares | I47: =$I$50*E47 -> 0 | O47: =K47*I47 -> 0
A48: 6 | C48: Total Equity | E48: =SUM(E46:E47) -> 0.4 | I48: =SUM(I46:I47) -> 130879382.8 | K48: =IF(E48=0,0,SUMPRODUCT(E46:E47,K46:K47)/E48) -> 0.0966 | O48: =SUM(O46:O47) -> 12642948.38
A50: 7 | C50: Total | E50: 1 | I50: 327198457 | K50: =(K43*E43)+(K48*E48) -> 0.076663112 | O50: =O43+O48 -> 25084051.96
A53: Notes
A54: (1) | C54: 4.0% unless an applicant has proposed or been approved for a different amount.

Sheet App.2 - OB Debt Instruments
A2: Appendix 2-OB
A3: Debt Instruments
A5: This table must be completed for all required historical years, the bridge year and the test year.
D6: Year | E6: 2011
A8: Row | B8: Description | C8: Lender | D8: Affiliated or Third-Party Debt? | E8: Fixed or Variable-Rate? | F8: Start Date | G8: Term (years) | H8: Principal ($) | I8: Rate (%) | J8: Interest ($) | K8: Additional Comments, if any
A9: 1 | B9: Promissory Note | C9: Hydro One Inc. | D9: Affiliated | E9: Fixed Rate | F9: 2001-06-01 | G9: 31 | H9: 143000000 | I9: 0.0695 | J9: =H9*I9 -> 9938500
A10: 2 | B10: Promissory Note | C10: Hydro One Inc. | D10: Affiliated | E10: Fixed Rate | F10: 2011-09-26 | G10: 30 | H10: 10000000 | I10: 0.0441 | J10: 441000 | K10: Principle X .5 for 1/2 yr.
A11: 3 | J11: 0
A12: 4 | J12: 0
A13: 5 | J13: 0
A14: 6 | J14: 0
A15: 7 | J15: 0
A16: 8 | J16: 0
A17: 9 | J17: 0
A18: 10 | J18: 0
A19: 11 | J19: 0
A20: 12 | J20: 0
A22: Total | H22: =SUM(H9:H20) -> 153000000 | I22: =IF(H22=0,"",J22/H22) -> 0.06783986928 | J22: =SUM(J9:J20) -> 10379500
D24: Year | E24: 2012
A26: Row | B26: Description | C26: Lender | D26: Affiliated or Third-Party Debt? | E26: Fixed or Variable-Rate? | F26: Start Date | G26: Term (years) | H26: Principal ($) | I26: Rate (%) | J26: Interest ($) | K26: Additional Comments, if any
A27: 1 | B27: Promissory Note | C27: Hydro One Inc. | D27: Affiliated | E27: Fixed Rate | F27: 2001-06-01 | G27: 31 | H27: 143000000 | I27: 0.0695 | J27: =H27*I27 -> 9938500
A28: 2 | B28: Promissory Note | C28: Hydro One Inc. | D28: Affiliated | E28: Fixed Rate | F28: 2011-09-26 | G28: 30 | H28: 20000000 | I28: 0.0441 | J28: 882000
A29: 3 | B29: Promissory Note | C29: Hydro One Inc. | D29: Affiliated | E29: Fixed Rate | F29: 2012-01-13 | G29: 10 | H29: 10000000 | I29: 0.0322 | J29: 322000 | K29: Principle X .5 for 1/2 yr.
A30: 4 | J30: 0
A31: 5 | J31: 0
A32: 6 | J32: 0
A33: 7 | J33: 0
A34: 8 | J34: 0
A35: 9 | J35: 0
A36: 10 | J36: 0
A37: 11 | J37: 0
A38: 12 | J38: 0
A40: Total | H40: =SUM(H27:H38) -> 173000000 | I40: =IF(H40=0,"",J40/H40) -> 0.06440751445 | J40: =SUM(J27:J38) -> 11142500
D42: Year | E42: 2013
A44: Row | B44: Description | C44: Lender | D44: Affiliated or Third-Party Debt? | E44: Fixed or Variable-Rate? | F44: Start Date | G44: Term (years) | H44: Principal ($) | I44: Rate (%) | J44: Interest ($) | K44: Additional Comments, if any
A45: 1 | B45: Promissory Note | C45: Hydro One Inc. | D45: Affiliated | E45: Fixed Rate | F45: 2001-06-01 | G45: 31 | H45: 143000000 | I45: 0.0695 | J45: =H45*I45 -> 9938500
A46: 2 | B46: Promissory Note | C46: Hydro One Inc. | D46: Affiliated | E46: Fixed Rate | F46: 2011-09-26 | G46: 30 | H46: 20000000 | I46: 0.0441 | J46: 882000
A47: 3 | B47: Promissory Note | C47: Hydro One Inc. | D47: Affiliated | E47: Fixed Rate | F47: 2012-01-13 | G47: 10 | H47: 20000000 | I47: 0.0322 | J47: 644000
A48: 4 | J48: 0
A49: 5 | J49: 0
A50: 6 | J50: 0
A51: 7 | J51: 0
A52: 8 | J52: 0
A53: 9 | J53: 0
A54: 10 | J54: 0
A55: 11 | J55: 0
A56: 12 | J56: 0
A58: Total | H58: =SUM(H45:H56) -> 183000000 | I58: =IF(H58=0,"",J58/H58) -> 0.06264754098 | J58: =SUM(J45:J56) -> 11464500
A62: Appendix 2-OB
A63: Debt Instruments
D64: Year | E64: 2014
A66: Row | B66: Description | C66: Lender | D66: Affiliated or Third-Party Debt? | E66: Fixed or Variable-Rate? | F66: Start Date | G66: Term (years) | H66: Principal ($) | I66: Rate (%) | J66: Interest ($) | K66: Additional Comments, if any
A67: 1 | B67: Promissory Note | C67: Hydro One Inc. | D67: Affiliated | E67: Fixed Rate | F67: 2001-06-01 | G67: 31 | H67: 143000000 | I67: 0.0695 | J67: =H67*I67 -> 9938500
A68: 2 | B68: Promissory Note | C68: Hydro One Inc. | D68: Affiliated | E68: Fixed Rate | F68: 2011-09-26 | G68: 30 | H68: 20000000 | I68: 0.0441 | J68: 882000
A69: 3 | B69: Promissory Note | C69: Hydro One Inc. | D69: Affiliated | E69: Fixed Rate | F69: 2012-01-13 | G69: 10 | H69: 20000000 | I69: 0.0322 | J69: 644000
A70: 4 | B70: Promissory Note | C70: Hydro One Inc. | D70: Affiliated | E70: Fixed Rate | F70: 2014-07-01 | G70: 30 | H70: 5000000 | I70: 0.0419 | J70: 209500 | K70: Principle X .5 for 1/2 yr.
A71: 5 | J71: 0
A72: 6 | J72: 0
A73: 7 | J73: 0
A74: 8 | J74: 0
A75: 9 | J75: 0
A76: 10 | J76: 0
A77: 11 | J77: 0
A78: 12 | J78: 0
A80: Total | H80: =SUM(H67:H78) -> 188000000 | I80: =IF(H80=0,"",J80/H80) -> 0.06209574468 | J80: =SUM(J67:J78) -> 11674000
D82: Year | E82: 2015
A84: Row | B84: Description | C84: Lender | D84: Affiliated or Third-Party Debt? | E84: Fixed or Variable-Rate? | F84: Start Date | G84: Term (years) | H84: Principal ($) | I84: Rate (%) | J84: Interest ($) | K84: Additional Comments, if any
A85: 1 | B85: Promissory Note | C85: Hydro One Inc. | D85: Affiliated | E85: Fixed Rate | F85: 2001-06-01 | G85: 31 | H85: 143000000 | I85: 0.0695 | J85: =H85*I85 -> 9938500
A86: 2 | B86: Promissory Note | C86: Hydro One Inc. | D86: Affiliated | E86: Fixed Rate | F86: 2011-09-26 | G86: 30 | H86: 20000000 | I86: 0.0441 | J86: 882000
A87: 3 | B87: Promissory Note | C87: Hydro One Inc. | D87: Affiliated | E87: Fixed Rate | F87: 2012-01-13 | G87: 10 | H87: 20000000 | I87: 0.0322 | J87: 644000
A88: 4 | B88: Promissory Note | C88: Hydro One Inc. | D88: Affiliated | E88: Fixed Rate | F88: 2014-07-01 | G88: 30 | H88: 10000000 | I88: 0.0419 | J88: 419000
A89: 5 | B89: Promissory Note | C89: Hydro One Inc. | D89: Affiliated | E89: Fixed Rate | F89: 2015-07-01 | G89: 30 | H89: 12500000 | I89: 0.0477 | J89: 596250 | K89: Principle X .5 for 1/2 yr.
A90: 6 | J90: 0
A91: 7 | J91: 0
A92: 8 | J92: 0
A93: 9 | J93: 0
A94: 10 | J94: 0
A95: 11 | J95: 0
A96: 12 | J96: 0
A98: Total | H98: =SUM(H85:H96) -> 205500000 | I98: =IF(H98=0,"",J98/H98) -> 0.06072871046 | J98: =SUM(J85:J96) -> 12479750
A100: 1. Where financing is in place for part of the year, mid year issue date is assumed and interest amount is included in appropriate interest dollar cell.

Sheet App.2-P_Cost_Allocation
B1: Appendix 2-P
B2: Cost Allocation
B4: Please complete the following four tables.
B6: A) Allocated Costs
B8: Classes | C8: Costs Allocated from Previous Study | D8: % | E8: Costs Allocated in Test Year Study (Column 7A) | F8: %
B9: Residential | C9: 34813009.3 | D9: =+IF($C$21=0,"",C9/$C$21) -> 0.5519841567 | E9: 43937262.46 | F9: =+IF($E$21=0,"",E9/$E$21) -> 0.6090168518
B10: GS < 50 kW | C10: 5801649.967 | D10: 0.09198914226 | E10: 7236507.978 | F10: 0.1003056417
B11: GS > 50 - 699 KW | C11: 12993372.15 | D11: 0.2060188336 | E11: 11135461.1 | F11: 0.154349249
B12: GS > 700 - 4,999 kW | C12: 5370442.976 | D12: 0.08515205946 | E12: 5458073.26 | F12: 0.07565465867
B13: Large User, if applicable | C13: 2030403.752 | D13: 0.03219344508 | E13: 2193164.122 | F13: 0.03039957054
B14: Street Lighting | C14: 1786237.505 | D14: 0.02832202164 | E14: 1883542.398 | F14: 0.0261078865
B15: Sentinel Lighting | C15: 0 | D15: 0 | F15: 0
B16: Unmetered Scattered Load (USL) | C16: 142086.7794 | D16: 0.00225288341 | E16: 147118.8346 | F16: 0.002039222393
B17: Distributed Generation Class | C17: 88879.20233 | D17: 0.001409240756 | E17: 104229.3636 | F17: 0.001444729037
B18: Energy from Waste Generation | C18: 693.5449387 | D18: 1.099663103e-05 | E18: 832.7145114 | F18: 1.154230241e-05
B19: Embedded distributor class | C19: 42080.83146 | D19: 0.0006672204654 | E19: 48383.61386 | F19: 0.0006706479773
B20: Standby Power | D20: 0 | E20: 0 | F20: 0
B21: Total | C21: =SUM(C9:C20) -> 63068856 | D21: 1 | E21: =SUM(E9:E20) -> 72144575.84 | F21: 1
B23: Notes
B25: 1 Customer Classification - If proposed rate classes differ from those in place in the previous Cost Allocation study, modify the rate classes to match the current application as closely as possible.
B28: 2 Host Distributors - Provide information on embedded distributor(s) as a separate class, if applicable. If embedded distributor(s) are billed as customers in a General Service class, include the allocated cost and revenue of the embedded distributor(s) in the applicable class. Also complete Appendix 2-Q.
B32: 3 Class Revenue Requirements - If using the Board-issued model, in column 7A enter the results from Worksheet O-1, Revenue Requirement (row 40 in the 2013 model). This excludes costs in deferral and variance accounts. Note to Embedded Distributor(s), it also does not include Account 4750 - Low Voltage (LV) Costs.
B36: B) Calculated Class Revenues
D38: Column 7B | E38: Column 7C | F38: Column 7D | G38: Column 7E
B39: Classes (same as previous table) | D39: Load Forecast (LF) X current approved rates | E39: L.F. X current approved rates X (1 + d) | F39: LF X proposed rates | G39: Miscellaneous Revenue
B41: Residential | D41: 37011790 | E41: 38559659.48 | F41: 38976449.76 | G41: 3052539.976
B42: GS < 50 kW | D42: 8305737 | E42: 8653091.259 | F42: 8334629.72 | G42: 349179.8528
B43: GS > 50 - 699 KW | D43: 9458822 | E43: 9854399.642 | F43: 10181203.57 | G43: 470624.8356
B44: GS > 700 - 4,999 kW | D44: 7032138 | E44: 7326229.419 | F44: 6426863.638 | G44: 122824.2745
B45: Large User, if applicable | D45: 1914284 | E45: 1994341.043 | F45: 2064356.623 | G45: 33554.51759
B46: Street Lighting | D46: 1347656 | E46: 1404016.212 | F46: 1718153.039 | G46: 83583.79452
B47: Sentinel Lighting
B48: Unmetered Scattered Load (USL) | D48: 122389 | E48: 127507.9425 | F48: 133695.1615 | G48: 7034.042956
B49: Distributed Generation Class | D49: 7240 | E49: 7543.25637 | F49: 45087.46377 | G49: 7027.218024
B50: Energy from Waste Generation | D50: 0 | E50: 0 | F50: 732.3627608 | G50: 100.3517506
B51: Embedded distributor class | D51: 2541 | E51: 2646.908643 | F51: 48263.47726 | G51: 120.1365994
B52: Standby Power | D52: 84997.02 | E52: 88551.67852 | F52: 88551.67807 | G52: 0
B53: Total | D53: =SUM(D41:D52) -> 65287594.02 | E53: =SUM(E41:E52) -> 68017986.84 | F53: =SUM(F41:F52) -> 68017986.5 | G53: =SUM(G41:G52) -> 4126589
B55: Notes:
B57: 1 Columns 7B to 7D - LF means Load Forecast of Annual Billing Quantities (i.e. customers or connections X 12, (kWh or kW, as applicable). Revenue Quantities should be net of Transfomrer Ownership Allowance. Exclude revenue from rate adders and rate riders.
B60: 2 Columns 7C and 7D - Column total in each column should equal the Base Revenue Requirement
B62: 3 Columns 7C - The Board cost allocation model calculates "1+d" in worksheet O-1, cell C21. "d" is defined as Revenue Deficiency/ Revenue at Current Rates.
B65: 4 Columns 7E - If using the Board-issued Cost Allocation model, enter Miscellaneous Revenue as it appears in Worksheet O-1, row 19.
B67: Appendix 2-P
B68: Cost Allocation
B70: C) Rebalancing Revenue-to-Cost (R/C) Ratios
B72: Class | D72: Previously Approved Ratios | E72: Status Quo Ratios | F72: Proposed Ratios | G72: Policy Range
D73: Most Recent Year: | E73: (7C + 7E) / (7A) | F73: (7D + 7E) / (7A)
D74: 2012
D75: % | E75: % | F75: % | G75: %
B76: Residential | D76: 101.12 | E76: =IF(E9=0,"",(E41+G41)/E9*100) -> 94.70822061 | F76: =IF(E9=0,"",(F41+G41)/E9*100) -> 95.65682382 | G76: 85 - 115
B77: GS < 50 kW | D77: 120 | E77: =IF(E10=0,"",(E42+G42)/E10*100) -> 124.4007626 | F77: =IF(E10=0,"",(F42+G42)/E10*100) -> 120 | G77: 80 - 120
B78: GS > 50 - 699 KW | D78: 80 | E78: =IF(E11=0,"",(E43+G43)/E11*100) -> 92.72202008 | F78: =IF(E11=0,"",(F43+G43)/E11*100) -> 95.65682382 | G78: 80 - 120
B79: GS > 700 - 4,999 kW | D79: 131.55 | E79: =IF(E12=0,"",(E44+G44)/E12*100) -> 136.4777155 | F79: =IF(E12=0,"",(F44+G44)/E12*100) -> 120 | G79: 80 - 120
B80: Large User, if applicable | D80: 100 | E80: =IF(E13=0,"",(E45+G45)/E13*100) -> 92.46437784 | F80: =IF(E13=0,"",(F45+G45)/E13*100) -> 95.65682382 | G80: 85 - 115
B81: Street Lighting | D81: 70 | E81: =IF(E14=0,"",(E46+G46)/E14*100) -> 78.9788437 | F81: =IF(E14=0,"",(F46+G46)/E14*100) -> 95.65682382 | G81: 70 - 120
B82: Sentinel Lighting | E82: =IF(E15=0,"",(E47+G47)/E15*100) ->  | F82: =IF(E15=0,"",(F47+G47)/E15*100) ->  | G82: 80 - 120
B83: Unmetered Scattered Load (USL) | D83: 80 | E83: =IF(E16=0,"",(E48+G48)/E16*100) -> 91.45123116 | F83: =IF(E16=0,"",(F48+G48)/E16*100) -> 95.65682382 | G83: 80 - 120
B84: Distributed Generation Class | E84: =IF(E17=0,"",(E49+G49)/E17*100) -> 13.97924145 | F84: =IF(E17=0,"",(F49+G49)/E17*100) -> 50 | G84: 85 - 115
B85: Energy from Waste Generation | E85: =IF(E18=0,"",(E50+G50)/E18*100) -> 12.0511591 | F85: =IF(E18=0,"",(F50+G50)/E18*100) -> 100 | G85: 100
B86: Embedded distributor class | E86: =IF(E19=0,"",(E51+G51)/E19*100) -> 5.71897182 | F86: =IF(E19=0,"",(F51+G51)/E19*100) -> 100
B87: Standby Power | E87: =IF(E20=0,"",(E52+G52)/E20*100) ->  | F87: N/A
B89: Notes
B91: 1 Previously Approved Revenue-to-Cost Ratios - For most applicants, Most Recent Year would be the third year of the IRM 3 period, e.g. if the applicant rebased in 2009 with further adjustments over 2 years, the Most recent year is 2011. For applicants whose most recent rebasing year is 2006, the applicant should enter the ratios from their Informational Filing.
B94: 2 Status Quo Ratios - The Board's updated Cost Allocation Model yields the Status Quo Ratios in Worksheet O-1. Status Quo means "Before Rebalancing".
B96: D) Proposed Revenue-to-Cost Ratios
B98: Class | D98: Proposed Revenue-to-Cost Ratios | G98: Policy Range
D99: 2015 | E99: 2016 | F99: 2017
D100: % | E100: % | F100: % | G100: %
B101: Residential | D101: =+F76 -> 95.65682382 | G101: 85 - 115
B102: GS < 50 kW | D102: 120 | G102: 80 - 120
B103: GS > 50 - 699 KW | D103: 95.65682382 | G103: 80 - 120
B104: GS > 700 - 4,999 kW | D104: 120 | G104: 80 - 120
B105: Large User, if applicable | D105: 95.65682382 | G105: 85 - 115
B106: Street Lighting | D106: 95.65682382 | G106: 70 - 120
B107: Sentinel Lighting | G107: 80 - 120
B108: Unmetered Scattered Load (USL) | D108: 95.65682382 | G108: 80 - 120
B109: Distributed Generation Class | D109: 50 | E109: 70 | F109: 90 | G109: 85 - 115
B110: Energy from Waste Generation | D110: 100 | G110: 100
B111: Embedded distributor class | D111: 100
B112: Standby Power | D112: N/A
B114: Note
B115: 1 The applicant should complete Table D if it is applying for approval of a revenue to cost ratio in 2013 that is outside the Board’s policy range for any customer class. Table (d) will show the information that the distributor would likely enter in the IRM model) in 2013. In 2014 Table (d), enter the planned ratios for the classes that will be ‘Change’ and ‘No Change’ in 2014 (in the current Revenue Cost Ratio Adjustment Workform, Worksheet C1.1 ‘Decision – Cost Revenue Adjustment’, column d), and enter TBD for class(es) that will be entered as ‘Rebalance’.

Sheet App.2-V Revenue Reconciliation
B1: Appendix 2-V
B2: Revenue Reconciliation
B4: Rate Class | C4: Customers/ Connections | D4: Number of Customers/Connections | G4: Test Year Consumption | I4: Proposed Rates | L4: Revenues at Proposed Rates | N4: Class Specific Revenue Requirement | O4: Transformer Allowance Credit | P4: Total | Q4: Difference
D5: Start of Test Year | E5: End of Test Year | F5: Average | G5: kWh | H5: kW | I5: Monthly Service Charge | J5: Volumetric
J6: kWh | K6: kW
B8: Residential | C8: Customers | D8: 139079.4065 | E8: 142878.957 | F8: =IF(SUM(D8:E8)=0,0,AVERAGE(D8:E8)) -> 140979.1817 | G8: 1308264983 | I8: 11.07 | J8: 0.0155 | L8: =I8*F8*12+J8*G8+K8*H8 -> 39005781.74 | N8: 38976450 | P8: =+N8+O8 -> 38976450 | Q8: =+P8-L8 -> -29331.74093
B9: GS < 50 kW | C9: Customers | D9: 8809.609331 | E9: 9169.310686 | F9: 8989.460008 | G9: 354668870.3 | I9: 24.39 | J9: 0.0161 | L9: 8341203.967 | N9: 8334630 | O9: 1185.666158 | P9: 8335815.666 | Q9: -5388.300682
B10: GS > 50 to 699 kW | C10: Customers | D10: 1494.461872 | E10: 1486.987108 | F10: 1490.72449 | G10: 1064497599 | H10: 2979825.698 | I10: 121.18 | K10: 2.7446 | L10: 10346181.54 | N10: 10181204 | O10: 165094.7715 | P10: 10346298.77 | Q10: 117.235592
B11: GS > 700 to 4,999 kW | C11: Customers | D11: 112.6231126 | E11: 116.6097102 | F11: 114.6164114 | G11: 806154179.9 | H11: 1969146.402 | I11: 1093.3496 | K11: 3.1861 | L11: 7777687.043 | N11: 6426864 | O11: 1350758.373 | P11: 7777622.373 | Q11: -64.66961005
B12: Large Use | C12: Customers | D12: 6 | E12: 6 | F12: 6 | G12: 382619513.4 | H12: 719987.0916 | I12: 4549.67 | K12: 2.4122 | L12: 2064329.102 | N12: 2064357 | P12: 2064357 | Q12: 27.89756196
B13: Streetlighting | C13: Connections | D13: 22167.98336 | E13: 22501.14368 | F13: 22334.56352 | G13: 33306954.55 | H13: 100671.8914 | I13: 2.22 | K13: 11.1563 | L13: 1718118.595 | N13: 1718153 | P13: 1718153 | Q13: 34.40530777
B14: Unmetered Scattered Load | C14: Connections | D14: 1548.255473 | E14: 1575.18085 | F14: 1561.718162 | G14: 5931732.904 | I14: 1.05 | J14: 0.0192 | L14: 133566.9206 | N14: 133695 | P14: 133695 | Q14: 128.0793984
B15: Standby Power | C15: Customers | D15: 1 | E15: 1 | F15: 1 | H15: 54579.73333 | I15: 0 | K15: 1.6224 | L15: 88550.15936 | N15: 88552 | P15: 88552 | Q15: 1.84064
B16: Embedded Distributor Class | C16: Customers | D16: 1 | E16: 1 | F16: 1 | G16: 17012413.82 | H16: 40073.43673 | I16: 4021.92 | K16: 0 | L16: 48263.04 | N16: 48263 | P16: 48263 | Q16: -0.04
B17: Distributor Generator | C17: Customers | D17: 61.16666667 | E17: 74 | F17: 67.58333333 | G17: 178815.8383 | I17: 55.59 | J17: 0 | L17: 45083.49 | N17: 45087 | P17: 45087 | Q17: 3.51
B18: Energy from Waste Generation | C18: Customers | D18: 1 | E18: 1 | F18: 1 | I18: 61 | J18: 0 | L18: 732 | N18: 732 | P18: 732 | Q18: 0
F19: 0 | L19: 0 | P19: 0 | Q19: =+L19-P19 -> 0
F20: 0 | L20: 0 | P20: 0 | Q20: =+L20-P20 -> 0
B22: Total | L22: =SUM(L8:L21) -> 69569497.59 | N22: =SUM(N8:N20) -> 68017987 | O22: =SUM(O8:O20) -> 1517038.811 | P22: =SUM(P8:P20) -> 69535025.81 | Q22: =SUM(Q8:Q20) -> -34471.78272
B24: Note
B26: 1 The class specific revenue requirements in column N must be the amounts used in the final rate design process. The total of column N should equate to the proposed base revenue requirement.
B28: 2 Rates should be entered with the number of decimal places that will show on the Tariff of Rates and Charges.
